fUSD/lending_fUSD_20250326
["ID","MTS","AMOUNT","RATE_DAILY","PERIOD"]
[356696982,1742986232367,-40.34188167,0.00026951,2]
[356696983,1742986232403,-114.04811833,0.00026951,2]
[356696984,1742986232412,-300.0,0.00027,2]
[356696985,1742986232421,-350.0,0.000275,3]
[356696986,1742986232430,-180.00018747,0.0002801,30]
[356696987,1742986232441,-319.99981253,0.0002801,30]
[356696988,1742986232450,-500.0,0.0002801,30]
[356696989,1742986232459,-500.0,0.0002801,30]
[356696990,1742986232468,-273.29487582,0.0002801,30]
[356696991,1742986232479,-226.70512418,0.0002801,30]
[356696992,1742986232488,-446.0017172,0.0002801,30]
[356697084,1742986238231,-53.9982828,0.0002801,30]
[356697085,1742986238241,-284.54885624,0.0002801,30]
[356697086,1742986238253,-215.45114376,0.0002801,30]
[356697087,1742986238263,-197.49385624,0.0002801,30]
[356697088,1742986238278,-302.50614376,0.0002801,30]
[356697089,1742986238287,-500.0,0.0002801,30]
[356697090,1742986238297,-978.25438,0.0002801,30]
[356697091,1742986238306,-328.54954065,0.000289,5]
[356697092,1742986238315,-350.0,0.00029,2]
[356697093,1742986238324,-676.6,0.00030845,2]
[356697094,1742986238334,-400.0,0.00031,2]
[356697095,1742986238343,-500.0,0.00031616,2]
[356697096,1742986238353,-1407.35,0.00032,120]
[356697097,1742986238362,-200.0,0.0003236,2]
[356697098,1742986238372,-345.0,0.00032448,2]
[356697099,1742986238381,-6743.51752424,0.00032449,120]
[356697100,1742986238396,-382.67634392,0.00032449,120]
[356697101,1742986238405,-689.60698187,0.00032838,2]
[356697102,1742986238415,-667.75923115,0.00032928,2]
[356697118,1742986240534,-363.02349253,0.00032928,2]
[356697119,1742986240546,-399.94211659,0.00032928,2]
[356697120,1742986240556,-643.61380405,0.00032928,2]
[356697122,1742986240568,-1480.14227436,0.00032928,2]
[356697157,1742986246199,-442.74372,0.00032928,2]
[356697158,1742986246304,-453.0,0.00032928,2]
[356697495,1742987431470,-250.0,0.00025,2]
[356697496,1742987431479,-159.57,0.00026849,2]
[356697497,1742987431489,-350.0,0.00026994,3]
[356697498,1742987431498,-300.0,0.00027,2]
[356697499,1742987431508,-150.0,0.00027139,2]
[356697500,1742987431517,-350.0,0.00027764,3]
[356697501,1742987431527,-500.0,0.0002801,30]
[356697502,1742987431536,-500.0,0.0002801,30]
[356697503,1742987431546,-500.0,0.0002801,30]
[356697504,1742987431555,-500.0,0.0002801,30]
[356697505,1742987431564,-666.23,0.0002801,30]
[356697506,1742987431574,-150.0,0.00029534,2]
[356697507,1742987431583,-350.0,0.00029534,3]
[356697508,1742987431592,-300.0,0.0003,5]
[356697509,1742987431602,-317.59788944,0.000319,6]
[356697510,1742987431611,-26358.78006091,0.00032,2]
[356697511,1742987431620,-3841.99685925,0.0003261,2]
[356697512,1742987431632,-4545.66219303,0.0003261,2]
[356697513,1742987431643,-524.91431154,0.00032631,2]
[356697514,1742987431652,-200.0,0.00032675,2]
[356697515,1742987431662,-300.0,0.000327,5]
[356697516,1742987431672,-996.02,0.000327,2]
[356697517,1742987431681,-1768.35,0.000327,2]
[356697518,1742987431690,-1048.72065851,0.00032838,2]
[356697519,1742987431700,-200.0,0.00032928,2]
[356697520,1742987431711,-159.75147,0.00032928,51]
[356697521,1742987431721,-3780.61285794,0.00032928,2]
[356697522,1742987431731,-500.0,0.00032936,7]
[356697523,1742987431739,-403.43586162,0.00032936,7]
[356697524,1742987431749,-4080.02793018,0.00032937,2]
[356697525,1742987431759,-703.657,0.00032937,34]
[356697526,1742987431767,-208.20384044,0.00032937,34]
[356697527,1742987431777,-150.0,0.00032937,2]
[356697528,1742987431786,-1000.0,0.00032938,2]
[356697529,1742987431795,-1000.0,0.00032938,2]
[356697530,1742987431804,-1000.0,0.00032938,2]
[356697531,1742987431813,-1000.0,0.00032938,2]
[356697532,1742987431822,-1000.0,0.00032938,2]
[356697533,1742987431832,-1000.0,0.00032938,2]
[356697534,1742987431842,-1000.0,0.00032938,2]
[356697535,1742987431852,-1000.0,0.00032938,2]
[356697536,1742987431861,-1000.0,0.00032938,2]
[356697537,1742987431870,-1000.0,0.00032938,2]
[356697538,1742987431880,-1000.0,0.00032938,2]
[356697539,1742987431890,-1000.0,0.00032938,2]
[356697541,1742987431899,-1000.0,0.00032938,2]
[356697542,1742987431909,-1000.0,0.00032938,2]
[356697543,1742987431918,-1000.0,0.00032938,2]
[356697544,1742987431927,-1000.0,0.00032938,2]
[356697545,1742987431937,-1000.0,0.00032938,2]
[356697546,1742987431947,-1000.0,0.00032938,2]
[356697547,1742987431956,-1000.0,0.00032938,2]
[356697548,1742987431965,-1000.0,0.00032938,2]
[356697549,1742987431974,-1000.0,0.00032938,2]
[356697550,1742987431984,-1000.0,0.00032938,2]
[356697551,1742987431994,-1000.0,0.00032938,2]
[356697552,1742987432003,-1000.0,0.00032938,2]
[356697553,1742987432012,-1000.0,0.00032938,2]
[356697554,1742987432021,-1000.0,0.00032938,2]
[356697555,1742987432032,-1000.0,0.00032938,2]
[356697556,1742987432041,-1000.0,0.00032938,2]
[356697557,1742987432051,-1000.0,0.00032938,2]
[356697558,1742987432060,-1000.0,0.00032938,2]
[356697559,1742987432071,-1000.0,0.00032938,2]
[356697560,1742987432082,-671.98782196,0.00032938,2]
[356697561,1742987432091,-11513.7080063,0.00032954,2]
[356697562,1742987432100,-354.4190644,0.00032954,2]
[356697563,1742987432110,-4499.5435655,0.00032954,2]
[356697564,1742987432119,-1249.6008064,0.00032954,2]
[356697565,1742987432128,-921.3720016,0.00032977,2]
[356697566,1742987432138,-2311.45063931,0.00032978,2]
[356697567,1742987432151,-205.0,0.00033,2]
[356697568,1742987432161,-379.0,0.00033,5]
[356697569,1742987432170,-169.0,0.00033,2]
[356697570,1742987432180,-500.0,0.00033,2]
[356697571,1742987432190,-276.09,0.00033009,2]
[356697572,1742987432200,-181.03456305,0.00033043,5]
[356697573,1742987432210,-152.68278205,0.00033043,5]
[356697574,1742987432219,-500.0,0.00033043,2]
[356697575,1742987432228,-250.0,0.00033094,2]
[356697576,1742987432238,-663.43,0.00033124,2]
[356697577,1742987432247,-151.0,0.00033139,7]
[356697578,1742987432257,-151.0,0.00033139,7]
[356697579,1742987432267,-151.0,0.00033139,7]
[356697580,1742987432275,-151.0,0.00033139,7]
[356697581,1742987432285,-151.747951,0.00033139,7]
[356697582,1742987432295,-151.932625,0.00033139,7]
[356697583,1742987432304,-151.0,0.00033139,7]
[356697584,1742987432314,-152.354768,0.00033139,7]
[356697585,1742987432324,-152.120647,0.00033139,7]
[356697586,1742987432333,-152.479076,0.00033139,7]
[356697587,1742987432342,-151.0,0.00033139,7]
[356697588,1742987432352,-155.739682,0.00033139,7]
[356697589,1742987432362,-151.0,0.00033139,7]
[356697590,1742987432371,-154.940752,0.00033139,7]
[356697591,1742987432381,-151.0,0.00033139,7]
[356697592,1742987432391,-151.0,0.00033139,7]
[356697593,1742987432400,-220.0,0.00033139,7]
[356697594,1742987432410,-220.0,0.00033139,7]
[356697595,1742987432420,-164.660065,0.00033139,7]
[356697596,1742987432429,-151.0,0.00033139,7]
[356697597,1742987432439,-151.0,0.00033139,7]
[356697598,1742987432448,-164.660065,0.00033139,7]
[356697599,1742987432458,-1500.0,0.00033139,60]
[356697600,1742987432467,-150.0,0.0003315,7]
[356697601,1742987432476,-169.0,0.00033151,2]
[356697602,1742987432486,-663.55,0.0003317,2]
[356697603,1742987432495,-151.0,0.00033199,7]
[356697604,1742987432505,-153.720812,0.00033199,7]
[356697605,1742987432514,-156.033263,0.00033199,7]
[356697606,1742987432524,-151.0,0.00033199,7]
[356697607,1742987432533,-151.0,0.00033199,7]
[356697608,1742987432543,-151.0,0.00033199,7]
[356697609,1742987432552,-151.0,0.00033199,7]
[356697610,1742987432561,-151.0,0.00033199,7]
[356697611,1742987432570,-151.0,0.00033199,7]
[356697612,1742987432579,-156.401695,0.00033199,7]
[356697613,1742987432588,-152.543465,0.00033199,7]
[356697614,1742987432598,-151.0,0.00033199,7]
[356697615,1742987432607,-1000.0,0.00033199,2]
[356697616,1742987432616,-871.44,0.00033277,2]
[356697617,1742987432625,-1000.0,0.00033283,2]
[356697618,1742987432634,-167.94,0.00033314,2]
[356697619,1742987432644,-150.0,0.00033317,2]
[356697620,1742987432653,-151.0,0.00033347,7]
[356697621,1742987432662,-159.832246,0.00033347,7]
[356697622,1742987432765,-151.0,0.00033347,7]
[356697623,1742987432775,-151.0,0.00033347,7]
[356697624,1742987432785,-151.0,0.00033347,7]
[356697625,1742987432794,-151.0,0.00033347,7]
[356697626,1742987432803,-153.554846,0.00033347,7]
[356697627,1742987432812,-245.138976,0.00033347,7]
[356697628,1742987432822,-155.65,0.00033347,120]
[356697629,1742987432831,-223.17,0.00033416,120]
[356697630,1742987432840,-1466.94,0.00033422,2]
[356697631,1742987432850,-151.0,0.00033424,7]
[356697632,1742987432860,-151.0,0.00033424,7]
[356697633,1742987432869,-154.475392,0.00033424,7]
[356697634,1742987432879,-160.985015,0.00033424,7]
[356697635,1742987432888,-151.0,0.00033424,7]
[356697636,1742987432898,-151.0,0.00033424,7]
[356697637,1742987432908,-152.053567,0.00033424,7]
[356697638,1742987432917,-161.035797,0.00033424,7]
[356697639,1742987432926,-158.497034,0.00033424,7]
[356697640,1742987432936,-166.697603,0.00033424,7]
[356697641,1742987432945,-151.0,0.00033424,7]
[356697642,1742987432954,-151.0,0.00033424,7]
[356697643,1742987432964,-151.0,0.00033424,7]
[356697644,1742987432973,-245.138976,0.00033424,7]
[356697645,1742987432982,-156.488152,0.00033424,7]
[356697646,1742987432991,-155.88773,0.00033424,7]
[356697647,1742987433000,-151.0,0.00033424,7]
[356697648,1742987433009,-151.0,0.00033424,7]
[356697649,1742987433019,-151.0,0.00033424,7]
[356697650,1742987433028,-153.932095,0.00033424,7]
[356697651,1742987433037,-162.423769,0.00033424,7]
[356697652,1742987433047,-220.0,0.00033424,7]
[356697653,1742987433058,-220.0,0.00033424,7]
[356697654,1742987433068,-164.660065,0.00033424,7]
[356697655,1742987433078,-248.300392,0.00033424,7]
[356697656,1742987433088,-151.0,0.00033424,7]
[356697657,1742987433097,-164.660065,0.00033424,7]
[356697658,1742987433107,-21651.25832382,0.00033424,2]
[356697659,1742987433132,-2248.74167618,0.00033424,2]
[356697660,1742987433142,-2169.0743,0.00033441,2]
[356697661,1742987433156,-563.238,0.00033441,2]
[356697662,1742987433166,-223.6836,0.00033441,2]
[356697663,1742987433176,-200.0,0.00033464,2]
[356697664,1742987433187,-152.310019,0.00033475,7]
[356697665,1742987433197,-152.656823,0.00033475,7]
[356697666,1742987433207,-151.0,0.00033475,7]
[356697667,1742987433218,-155.121281,0.00033475,7]
[356697668,1742987433229,-156.04107,0.00033475,7]
[356697669,1742987433240,-156.104646,0.00033475,7]
[356697670,1742987433250,-157.514985,0.00033475,7]
[356697671,1742987433259,-742.95,0.00033535,2]
[356697672,1742987433269,-151.0,0.00033541,7]
[356697673,1742987433279,-247.126506,0.00033541,7]
[356697674,1742987433290,-151.0,0.00033541,7]
[356697675,1742987433299,-80.98433636,0.00033541,7]
[356697676,1742987433311,-74.95606364,0.00033541,7]
[356697677,1742987433322,-159.689452,0.00033541,7]
[356697678,1742987433332,-153.503341,0.00033541,7]
[356697679,1742987433342,-120.97162995,0.00033541,7]
[356697680,1742987433354,-30.02837005,0.00033541,7]
[356697681,1742987433363,-152.607418,0.00033541,7]
[356697682,1742987433373,-154.999515,0.00033541,7]
[356697683,1742987433383,-151.0,0.00033541,7]
[356697684,1742987433393,-154.204192,0.00033541,7]
[356697685,1742987433402,-151.0,0.00033541,7]
[356697686,1742987433413,-151.0,0.00033541,7]
[356697687,1742987433422,-197.74,0.00033541,7]
[356697688,1742987433431,-151.0,0.00033541,7]
[356697689,1742987433441,-161.112017,0.00033541,7]
[356697690,1742987433451,-151.0,0.00033541,7]
[356697691,1742987433460,-151.0,0.00033541,7]
[356697692,1742987433470,-151.0,0.00033541,7]
[356697693,1742987433479,-151.0,0.00033541,7]
[356697694,1742987433488,-159.59579,0.00033541,7]
[356697695,1742987433498,-151.0,0.00033541,7]
[356697696,1742987433507,-500.0,0.00033541,7]
[356697697,1742987433517,-273.40242432,0.00033541,7]
[356697698,1742987433526,-150.0,0.00033541,7]
[356697699,1742987433536,-500.0,0.00033541,7]
[356697700,1742987433546,-150.0,0.00033541,7]
[356697701,1742987433556,-943.0,0.00033541,7]
[356697702,1742987433565,-1188.0,0.00033541,7]
[356697703,1742987433575,-500.0,0.00033541,7]
[356697704,1742987433584,-150.0,0.00033541,2]
[356697705,1742987433593,-500.0,0.00033541,7]
[356697706,1742987433603,-150.0,0.00033541,2]
[356697707,1742987433612,-500.0,0.00033541,7]
[356697708,1742987433622,-500.0,0.00033562,2]
[356697709,1742987433631,-500.0,0.00033568,7]
[356697710,1742987433640,-150.0,0.00033568,7]
[356697711,1742987433650,-500.0,0.00033568,7]
[356697712,1742987433659,-150.0,0.00033568,7]
[356697713,1742987433669,-83.43844869,0.00033568,7]
[356697714,1742987433687,-859.56155131,0.00033568,7]
[356697715,1742987433697,-201.14946394,0.00033568,7]
[356697716,1742987433708,-986.85053606,0.00033568,7]
[356697717,1742987433717,-222.64546394,0.00033568,7]
[356697718,1742987433729,-277.35453606,0.00033568,7]
[356697719,1742987433739,-500.0,0.00033568,7]
[356697720,1742987433749,-500.0,0.00033568,7]
[356697721,1742987433758,-604.95084102,0.00033596,7]
[356697722,1742987433768,-210.39975326,0.00033596,7]
[356697723,1742987433777,-500.0,0.00033596,7]
[356697724,1742987433787,-237.49220232,0.00033596,7]
[356697725,1742987433797,-943.0,0.00033596,7]
[356697726,1742987433807,-1188.0,0.00033596,7]
[356697727,1742987433816,-500.0,0.00033596,7]
[356697728,1742987433826,-989.71599175,0.00033596,7]
[356697729,1742987433836,-847.07132485,0.00033596,7]
[356697730,1742987433846,-1249.19,0.00033606,120]
[356697731,1742987433856,-500.0,0.00033623,7]
[356697732,1742987433866,-943.0,0.00033623,7]
[356697733,1742987433876,-1188.0,0.00033623,7]
[356697734,1742987433885,-500.0,0.00033623,7]
[356697735,1742987433895,-660.86482239,0.00033651,7]
[356697736,1742987433904,-943.0,0.00033651,7]
[356697737,1742987433914,-1188.0,0.00033651,7]
[356697738,1742987433924,-995.65142483,0.00033651,7]
[356697739,1742987433933,-943.0,0.00033678,7]
[356697740,1742987433942,-1188.0,0.00033678,7]
[356697741,1742987433951,-943.0,0.00033705,7]
[356697742,1742987433961,-1188.0,0.00033705,7]
[356697743,1742987433969,-943.0,0.00033733,7]
[356697744,1742987433978,-1188.0,0.00033733,7]
[356697745,1742987433987,-151.0,0.00033743,7]
[356697746,1742987433996,-157.067577,0.00033743,7]
[356697747,1742987434005,-151.0,0.00033743,7]
[356697748,1742987434014,-151.0,0.00033743,7]
[356697749,1742987434023,-154.090292,0.00033743,7]
[356697750,1742987434033,-151.0,0.00033743,7]
[356697751,1742987434043,-151.0,0.00033743,7]
[356697752,1742987434053,-245.138976,0.00033743,7]
[356697753,1742987434063,-245.138976,0.00033743,7]
[356697754,1742987434072,-151.0,0.00033743,7]
[356697755,1742987434081,-159.764781,0.00033743,7]
[356697756,1742987434090,-151.0,0.00033743,7]
[356697757,1742987434102,-220.0,0.00033743,7]
[356697758,1742987434112,-220.0,0.00033743,7]
[356697759,1742987434122,-164.660065,0.00033743,7]
[356697760,1742987434132,-151.0,0.00033743,7]
[356697761,1742987434141,-164.660065,0.00033743,7]
[356697762,1742987434156,-3101.43,0.00033743,2]
[356697763,1742987434166,-943.0,0.0003376,7]
[356697764,1742987434176,-1188.0,0.0003376,7]
[356697765,1742987434187,-943.0,0.00033788,7]
[356697766,1742987434196,-1188.0,0.00033788,7]
[356697767,1742987434206,-943.0,0.00033815,7]
[356697768,1742987434216,-1188.0,0.00033815,7]
[356697769,1742987434225,-1048.72065849,0.00033816,2]
[356697770,1742987434236,-943.0,0.00033842,7]
[356697771,1742987434246,-1188.0,0.00033842,7]
[356697772,1742987434256,-943.0,0.0003387,7]
[356697773,1742987434267,-1188.0,0.0003387,7]
[356697774,1742987434276,-943.0,0.00033897,7]
[356697775,1742987434286,-1188.0,0.00033897,7]
[356697776,1742987434296,-506.27426959,0.00033922,5]
[356697777,1742987434307,-155.23009733,0.00033922,5]
[356697778,1742987434318,-943.0,0.00033925,7]
[356697779,1742987434328,-1188.0,0.00033925,7]
[356697780,1742987434337,-943.0,0.00033952,7]
[356697781,1742987434347,-1188.0,0.00033952,7]
[356697782,1742987434446,-943.0,0.00033979,7]
[356697783,1742987434456,-1188.0,0.00033979,7]
[356697784,1742987434466,-205.0,0.0003399,2]
[356697785,1742987434475,-943.0,0.00034007,7]
[356697786,1742987434484,-1188.0,0.00034007,7]
[356697787,1742987434493,-984.4,0.00034009,2]
[356697788,1742987434502,-943.0,0.00034034,7]
[356697789,1742987434512,-1188.0,0.00034034,7]
[356697790,1742987434521,-957.90461955,0.00034062,7]
[356697791,1742987434530,-1205.11044874,0.00034062,7]
[356697792,1742987434539,-163.02283591,0.00034125,5]
[356697793,1742987434548,-177.88,0.0003445,120]
[356697794,1742987434558,-220.0,0.00034511,7]
[356697795,1742987434567,-220.0,0.00034511,7]
[356697796,1742987434577,-164.660065,0.00034511,7]
[356697797,1742987434589,-151.0,0.00034511,7]
[356697798,1742987434599,-164.660065,0.00034511,7]
[356697799,1742987434608,-169.0,0.00034521,2]
[356697800,1742987434617,-150.0,0.00034548,10]
[356697801,1742987434627,-155.09744,0.00034548,7]
[356697802,1742987434636,-151.0,0.00034548,7]
[356697803,1742987434646,-154.792477,0.00034548,7]
[356697804,1742987434655,-151.0,0.00034548,7]
[356697805,1742987434664,-151.0,0.00034548,7]
[356697806,1742987434673,-151.0,0.00034548,7]
[356697807,1742987434683,-151.0,0.00034548,7]
[356697808,1742987434692,-151.0,0.00034548,7]
[356697809,1742987434702,-151.0,0.00034548,7]
[356697810,1742987434711,-151.0,0.0003457,7]
[356697811,1742987434721,-151.0,0.00034613,7]
[356697812,1742987434730,-220.0,0.00034671,7]
[356697813,1742987434740,-220.0,0.00034671,7]
[356697814,1742987434749,-164.660065,0.00034671,7]
[356697815,1742987434759,-151.0,0.00034671,7]
[356697816,1742987434768,-164.660065,0.00034671,7]
[356697817,1742987434777,-1273.0,0.00034671,2]
[356697818,1742987434786,-249.039,0.00034671,2]
[356697819,1742987434796,-151.0,0.00034671,2]
[356697820,1742987434805,-3218.757,0.00034671,2]
[356697821,1742987434814,-1116.0,0.00034671,2]
[356697822,1742987434824,-288.231803,0.00034675,7]
[356697823,1742987434833,-1048.72065849,0.00034794,2]
[356697824,1742987434843,-220.0,0.00034867,7]
[356697825,1742987434852,-220.0,0.00034867,7]
[356697826,1742987434862,-164.660065,0.00034867,7]
[356697827,1742987434872,-151.0,0.00034867,7]
[356697828,1742987434882,-164.660065,0.00034867,7]
[356697829,1742987434891,-150.0,0.00034987,2]
[356697830,1742987434901,-205.0,0.0003499,2]
[356697831,1742987434911,-1921.0,0.000351,7]
[356697832,1742987434921,-500.0,0.00035219,30]
[356697833,1742987434931,-500.0,0.00035219,30]
[356697834,1742987434941,-500.0,0.00035219,30]
[356697835,1742987434950,-500.0,0.00035219,30]
[356697836,1742987434960,-500.0,0.00035219,30]
[356697837,1742987434970,-151.0,0.00035226,7]
[356697838,1742987434979,-151.0,0.00035226,7]
[356697839,1742987434989,-245.138976,0.00035226,7]
[356697840,1742987434999,-245.138976,0.00035226,7]
[356697841,1742987435008,-153.006504,0.0003525,7]
[356697842,1742987435018,-151.0,0.00035281,7]
[356697843,1742987435028,-251.355136,0.00035299,7]
[356697844,1742987435038,-151.0,0.00035299,7]
[356697845,1742987435048,-500.0,0.00035299,2]
[356697846,1742987435057,-150.0,0.00035299,2]
[356697847,1742987435067,-150.0,0.00035299,2]
[356697848,1742987435078,-150.0,0.00035299,2]
[356697849,1742987435087,-151.0,0.00035299,7]
[356697850,1742987435097,-151.0,0.00035299,7]
[356697851,1742987435106,-151.0,0.00035299,7]
[356697852,1742987435116,-151.0,0.00035299,7]
[356697853,1742987435126,-155.396638,0.00035299,7]
[356697854,1742987435136,-150.0,0.00035311,2]
[356697855,1742987435147,-220.0,0.00035326,7]
[356697856,1742987435160,-220.0,0.00035326,7]
[356697857,1742987435170,-164.660065,0.00035326,7]
[356697858,1742987435179,-151.0,0.00035326,7]
[356697859,1742987435189,-500.0,0.00035326,2]
[356697860,1742987435199,-200.33785505,0.00035326,2]
[356697861,1742987435209,-150.0,0.00035326,2]
[356697862,1742987435218,-150.0,0.00035326,2]
[356697863,1742987435228,-500.0,0.00035354,2]
[356697864,1742987435239,-150.0,0.00035354,2]
[356697865,1742987435248,-150.0,0.00035354,2]
[356697866,1742987435258,-151.0,0.00035354,7]
[356697867,1742987435267,-293.342349,0.00035354,7]
[356697868,1742987435277,-1000.0,0.00035354,28]
[356697869,1742987435287,-1000.0,0.00035354,28]
[356697870,1742987435296,-1000.0,0.00035354,28]
[356697871,1742987435305,-1000.0,0.00035354,28]
[356697872,1742987435315,-1000.0,0.00035354,28]
[356697873,1742987435325,-1000.0,0.00035354,28]
[356697874,1742987435334,-1000.0,0.00035354,28]
[356697875,1742987435344,-1000.0,0.00035354,28]
[356697876,1742987435353,-1000.0,0.00035354,28]
[356697877,1742987435364,-1000.0,0.00035354,28]
[356697878,1742987435373,-1000.0,0.00035354,28]
[356697879,1742987435383,-1000.0,0.00035354,28]
[356697880,1742987435393,-560.945188,0.00035354,28]
[356697881,1742987435403,-151.0,0.00035354,7]
[356697882,1742987435413,-151.0,0.00035354,7]
[356697883,1742987435423,-158.778136,0.00035354,7]
[356697884,1742987435433,-245.138976,0.00035354,7]
[356697885,1742987435443,-245.138976,0.00035354,7]
[356697886,1742987435453,-151.0,0.00035381,7]
[356697887,1742987435463,-151.0,0.00035381,7]
[356697888,1742987435473,-245.138976,0.00035381,7]
[356697889,1742987435482,-245.138976,0.00035381,7]
[356697890,1742987435492,-500.0,0.00035381,2]
[356697891,1742987435501,-150.0,0.00035381,2]
[356697892,1742987435511,-150.0,0.00035381,2]
[356697893,1742987435520,-151.0,0.00035408,7]
[356697894,1742987435529,-500.15999391,0.00035409,2]
[356697895,1742987435539,-150.0,0.00035409,2]
[356697896,1742987435548,-166.12406296,0.00035409,2]
[356697897,1742987435558,-249.08579199,0.00035436,2]
[356697898,1742987435567,-220.0,0.00035436,7]
[356697899,1742987435577,-220.0,0.00035436,7]
[356697900,1742987435586,-164.660065,0.00035436,7]
[356697901,1742987435595,-151.0,0.00035436,7]
[356697902,1742987435604,-191.86,0.00035483,2]
[356697903,1742987435613,-151.0,0.00035491,7]
[356697904,1742987435622,-150.0,0.00035528,2]
[356697905,1742987435632,-150.0,0.00035536,2]
[356697906,1742987435641,-2000.0,0.00035545,14]
[356697907,1742987435651,-2000.0,0.00035545,14]
[356697908,1742987435660,-2000.0,0.00035545,14]
[356697909,1742987435670,-2000.0,0.00035545,14]
[356697910,1742987435679,-2000.0,0.00035545,14]
[356697911,1742987435688,-2000.0,0.00035545,14]
[356697912,1742987435698,-341.208419,0.00035545,14]
[356697913,1742987435707,-151.0,0.00035545,7]
[356697914,1742987435716,-245.138976,0.00035545,7]
[356697915,1742987435726,-245.138976,0.00035545,7]
[356697916,1742987435735,-151.0,0.00035573,7]
[356697917,1742987435745,-237.38330156,0.00035616,60]
[356697918,1742987435754,-161.78,0.00035616,2]
[356697919,1742987435763,-292.251501,0.00035655,7]
[356697920,1742987435773,-17332.2522,0.00035665,2]
[356697921,1742987435782,-151.0,0.00035665,7]
[356697922,1742987435791,-245.138976,0.00035665,7]
[356697923,1742987435801,-245.138976,0.00035665,7]
[356697924,1742987435812,-220.0,0.00035665,7]
[356697925,1742987435821,-220.0,0.00035665,7]
[356697926,1742987435831,-164.660065,0.00035665,7]
[356697927,1742987435842,-151.0,0.00035682,7]
[356697928,1742987435851,-1878.0,0.00035682,5]
[356697929,1742987435861,-8636.0,0.00035707,2]
[356697930,1742987435870,-151.0,0.0003571,7]
[356697931,1742987435880,-245.138976,0.0003571,7]
[356697932,1742987435890,-245.138976,0.0003571,7]
[356697933,1742987435984,-150.0,0.00035795,2]
[356697934,1742987435994,-200.0,0.00035927,120]
[356697935,1742987436003,-205.0,0.0003599,2]
[356697936,1742987436012,-151.0,0.0003599,7]
[356697937,1742987436021,-1497.2445089,0.00035998,4]
[356697938,1742987436031,-150.0,0.00036021,2]
[356697939,1742987436040,-500.0,0.0003611,2]
[356697940,1742987436050,-510.74,0.00036112,7]
[356697941,1742987436060,-500.0,0.00036112,7]
[356697942,1742987436069,-500.0,0.00036112,7]
[356697943,1742987436078,-500.0,0.00036112,7]
[356697944,1742987436087,-500.0,0.00036112,7]
[356697945,1742987436097,-500.0,0.00036112,7]
[356697946,1742987436106,-500.0,0.00036112,7]
[356697947,1742987436116,-500.0,0.00036112,7]
[356697948,1742987436125,-500.0,0.00036112,7]
[356697949,1742987436135,-500.0,0.00036112,7]
[356697950,1742987436144,-192.41,0.00036112,7]
[356697951,1742987436156,-292.03,0.00036112,7]
[356697952,1742987436166,-151.0,0.00036112,7]
[356697953,1742987436175,-245.138976,0.00036112,7]
[356697954,1742987436185,-245.138978,0.00036112,7]
[356697955,1742987436195,-190.09178846,0.00036191,2]
[356697956,1742987436204,-169.0,0.00036247,2]
[356697957,1742987436214,-150.0,0.00036302,2]
[356697958,1742987436223,-150.0,0.00036421,2]
[356697959,1742987436235,-150.0,0.00036428,2]